Workbook

Sheet Oct-Dec12
B1: EXPENDITURE OF CROSS STICH PROJECT FOR THE MONTH OF October 2012 TO December 2012
B2: Item / Activities | C2: Particulars | D2: October | E2: November | F2: December | G2: Total | H2: Remarks
B3: Salary Rupam Gupta Shamsul Haque | C3: 2 computer instructor @ Rs,4,000/- | D3: 17000 | E3: 15000 | F3: 17000 | G3: =D3+E3+F3 -> 49000 | H3: 17 th November New Vocational Trainer Moshina Khatoon apppointed Instead of mustary Khatoon
B4: Mustari Khatoon | C4: 1 Stitching coordinator x @ Rs 4000/-
B5: Srijeet Dinda | C5: 1 Spoken English Teacher @ Rs 3000
B6: Afsari Begum | C6: 1 Cooking Staff @ 2000
B7: Work shop | D7: 104 | G7: =SUM(D7:F7) -> 104
B8: Travelling/ Snacks/ Stipend | C8: For Each girl Girls X @ Rs 50/- X 8 Days | D8: 13248 | E8: 10652 | F8: 13200 | G8: =SUM(D8:F8) -> 37100 | H8: New Girls Apponted from middle of November
B9: Raw Material | C9: Vocational Raw Material @ Rs 3000/- per month | D9: 3000 | E9: 2500 | F9: 3566 | G9: 9066
B10: Contingency / Administrative cost | C10: Stationary, Telephone, electricity, machine maintain cost (sewing & Desktop) maintenance cost @Rs 3000/- per month | D10: 3000 | E10: 2800 | F10: 3000 | G10: 8800 | H10: New Girls Apponted from middle of November
B11: Internet | C11: Internet connection X @ Rs.1000/- per month | D11: 1000 | E11: 1000 | F11: 1000 | G11: 3000
B12: Total Expenses | D12: =SUM(D3:D11) -> 37352 | E12: =SUM(E3:E11) -> 31952 | F12: 37766 | G12: =SUM(G3:G11) -> 107070

Sheet Received & Payment upto Dec
B1: UNAUDITED STATEMENTS
C2: TRINITA SOCIETY FOR SOCIAL AND HEALTH RESEARCH
C3: 19 KANKULIA ROAD, KOLKATA 700029
C4: CROSSSTICH PROJECT
C6: RECEIPTS & PAYMENTS ACCOUNT FOR THE YEAR ENDED 31 ST DECEMBER 2012
C8: RECEIPTS | D8: AMOUNT (Rs) | E8: AMOUNT (Rs) | F8: PAYMENTS | G8: AMOUNT (Rs) | H8: AMOUNT (Rs)
F10: By Salary | G10: 151000
C11: To Opening Balance | F11: By Tiffin & Stipend | G11: 118700
C12: Cash at Bank | D12: 0.2 | F12: By Raw Material | G12: ='April To December'!M9 -> 27066
C13: Cash In Hand | E13: =D12+D13 -> 0.2 | F13: By Internet Connection | G13: 9000
F14: By Contingency | G14: 26800
F15: By Workshop | G15: 9104 | H15: =SUM(G10:G15) -> 341670
C16: To Graint in Aid
C17: Received from CROSSSTICH PROJECT | D17: =381784+120317.62+224826 -> 726927.62 | F17: By Loan Payment | H17: 228477
C18: through Asha for Education | E18: =D17+D18 -> 726927.62
F19: By Closing Balance :-
F20: Cash at Bank | G20: =H24-SUM(H15+H17) -> 156780.82
F21: Cash In Hand | H21: =G20+G21 -> 156780.82
E24: =SUM(E9:E23) -> 726927.82 | H24: =E24 -> 726927.82

Sheet April To December
B1: EXPENDITURE OF CROSS STICH PROJECT FOR THE MONTH OF April 2012 TO December 2012
B2: Item / Activities | C2: Particulars | D2: April | E2: May | F2: June | G2: July | H2: August | I2: September | J2: October | K2: November | L2: December | M2: Total | N2: Remarks
B3: Salary Rupam Gupta Shamsul Haque | C3: 2 computer instactor @ Rs,4,000/- | D3: 17000 | E3: 17000 | F3: 17000 | G3: 17000 | H3: 17000 | I3: 17000 | J3: 17000 | K3: 15000 | L3: 17000 | M3: =SUM(D3:L6) -> 151000 | N3: ='Oct-Dec12'!H3:H6 -> 17 th November New Vocational Trainer Moshina Khatoon apppointed Instead of mustary Khatoon
B4: Mustari Khatoon / Moshina Khatoon | C4: 1 Stitching coordinator x @ Rs 4000/-
B5: Srijeet Dinda | C5: 1 Spoken English Teacher @ Rs 3000
B6: Afsari Begum | C6: 1 Cooking Staff @ 2000
B7: Work shop | D7: 1500 | E7: 1500 | F7: 1500 | G7: 1500 | H7: 1500 | I7: 1500 | J7: 104 | M7: =D7+E7+F7+G7+H7+I7+J7+K7+L7 -> 9104
B8: Travelling/ Snacks/ Stipend | C8: For Each girl Girls X @ Rs 50/- X 8 Days | D8: 13600 | E8: 13600 | F8: 13600 | G8: 13600 | H8: 13600 | I8: 13600 | J8: 13248 | K8: 10652 | L8: 13200 | M8: =D8+E8+F8+G8+H8+I8+J8+K8+L8 -> 118700 | N8: ='Oct-Dec12'!H8 -> New Girls Apponted from middle of November
B9: Raw Material | C9: Vocational Raw Material @ Rs 3000/- per month | D9: 3000 | E9: 3000 | F9: 3000 | G9: 3000 | H9: 3000 | I9: 3000 | J9: 3000 | K9: 2500 | L9: 3566 | M9: 27066
B10: Contingency / Administrative cost | C10: Stationary, Telephone, electricity, machine maintain cost (sewing & Desktop) maintenance cost @Rs 3000/- per month | D10: 3000 | E10: 3000 | F10: 3000 | G10: 3000 | H10: 3000 | I10: 3000 | J10: 3000 | K10: 2800 | L10: 3000 | M10: 26800 | N10: =N8 -> New Girls Apponted from middle of November
B11: Internet | C11: Internet connection X @ Rs.1000/- per month | D11: 1000 | E11: 1000 | F11: 1000 | G11: 1000 | H11: 1000 | I11: 1000 | J11: 1000 | K11: 1000 | L11: 1000 | M11: 9000
B12: Total Expenses | D12: =D11+D10+D9+D8+D3+D7 -> 39100 | E12: =E11+E10+E9+E8+E3+E7 -> 39100 | F12: 39100 | G12: =G11+G10+G9+G8+G3+G7 -> 39100 | H12: =H11+H10+H9+H8+H3+H7 -> 39100 | I12: =I11+I10+I9+I8+I3+I7 -> 39100 | J12: =J11+J10+J9+J8+J3+J7 -> 37352 | K12: =K11+K10+K9+K8+K3+K7 -> 31952 | L12: =L11+L10+L9+L8+L3+L7 -> 37766 | M12: =SUM(M3:M11) -> 341670
